bitfinex/quotes_BTCUSD_20260215
["timestamp","ask_amount","ask_price","bid_price","bid_amount"]
[1771158423329,0.07103984,70384.0,70372.0,0.07105098]
[1771158423536,0.07103786,70385.0,70380.0,0.07104251]
[1771158424103,0.07203786,70385.0,70380.0,0.07104251]
[1771158424497,0.07103957,70384.0,70378.0,0.07104433]
[1771158424699,0.07103957,70384.0,70379.0,0.0710439]
[1771158424899,0.0004,70383.0,70380.0,0.07104286]
[1771158425862,0.0004,70383.0,70376.0,0.26949136]
[1771158426060,0.0004,70383.0,70380.0,0.07104232]
[1771158426268,0.0004,70383.0,70381.0,0.02293056]
[1771158426677,0.0004,70386.0,70381.0,0.02293056]
[1771158426976,0.07143737,70386.0,70381.0,0.02293056]
[1771158427206,0.0710385,70385.0,70381.0,0.02293056]
[1771158427339,0.0710385,70385.0,70379.0,0.07104367]
[1771158429597,0.07103897,70384.0,70379.0,0.07104367]
[1771158429829,0.07103897,70384.0,70379.0,0.0940178]
[1771158430067,0.07103897,70384.0,70379.0,0.02297413]
[1771158430278,0.07103897,70384.0,70378.0,0.0710445]
[1771158430487,0.07104014,70383.0,70378.0,0.0710445]
[1771158430922,0.0004,70386.0,70375.0,0.09402033]
[1771158431129,0.07104144,70382.0,70377.0,0.07104585]
[1771158433413,0.07143715,70386.0,70380.0,0.07104205]
[1771158434027,0.0004,70383.0,70381.0,0.07104172]
[1771158434639,0.0004,70383.0,70380.0,0.09519079]
[1771158435013,0.07144015,70383.0,70380.0,0.02419231]
[1771158435220,0.0004,70383.0,70380.0,0.02419231]
[1771158437201,0.07104138,70382.0,70377.0,0.07104563]
[1771158437406,0.0004,70383.0,70370.0,0.28420903]
[1771158437407,0.0004,70383.0,70374.0,0.07104838]
[1771158437615,0.0004,70383.0,70373.0,0.02419231]
[1771158437616,0.07104137,70382.0,70377.0,0.07104562]
[1771158438104,0.07104218,70381.0,70376.0,0.07104675]
[1771158438747,0.07104218,70381.0,70377.0,0.07104592]
[1771158439756,0.07104218,70381.0,70376.0,0.07104675]
[1771158440370,0.07104627,70377.0,70369.0,0.0002]
[1771158440638,0.07104627,70377.0,70354.0,0.0002]
[1771158440639,0.02472809,70374.0,70370.0,0.07105254]
[1771158440859,0.02472809,70374.0,70370.0,0.07105267]
[1771158441384,0.02472809,70374.0,70369.0,0.07105383]
[1771158441682,0.09577751,70374.0,70368.0,0.07105435]
[1771158441891,0.07105027,70373.0,70362.0,0.28424433]
[1771158442088,0.07105027,70373.0,70361.0,0.02439231]
[1771158442089,0.07105184,70372.0,70366.0,0.07105625]
[1771158442323,0.07105426,70369.0,70364.0,0.07105867]
[1771158442520,0.07105401,70369.0,70368.0,0.0002]
[1771158442896,0.07105011,70373.0,70368.0,0.0002]
[1771158443140,0.02477809,70376.0,70368.0,0.0002]
[1771158443141,0.09577604,70376.0,70368.0,0.0002]
[1771158443371,0.00012939,70377.0,70364.0,7e-05]
[1771158443372,0.07055604,70367.0,70364.0,7e-05]
[1771158443589,0.07105759,70366.0,70364.0,7e-05]
[1771158443784,0.02472809,70368.0,70364.0,0.07105875]
[1771158443983,0.07105411,70369.0,70364.0,0.07105875]
[1771158444833,0.07109464,70370.0,70365.0,0.07105773]
[1771158447383,0.02472809,70372.0,70365.0,0.07105773]
[1771158447526,4e-05,70390.0,70363.0,0.26407565]
[1771158447857,0.07104261,70381.0,70375.0,0.09524016]
[1771158448029,0.07104261,70381.0,70376.0,0.07104665]
[1771158451126,0.07104261,70381.0,70376.0,0.07100308]
[1771158452497,0.071043,70380.0,70375.0,0.07104785]
[1771158452933,0.07104261,70381.0,70375.0,0.07104785]
[1771158453605,0.07104261,70381.0,70376.0,0.09523896]
[1771158454394,0.07104261,70381.0,70376.0,0.0950899]
[1771158455193,0.0004,70383.0,70377.0,0.28418375]
[1771158455400,0.0004,70383.0,70379.0,0.07054313]
[1771158455602,0.0004,70383.0,70379.0,0.07049956]
[1771158456172,0.07144017,70383.0,70378.0,0.07104313]
[1771158456829,0.07104271,70381.0,70374.0,0.07104896]
[1771158457025,0.07104271,70381.0,70376.0,0.07104664]
[1771158457334,0.07109271,70381.0,70376.0,0.07104664]
[1771158458296,4e-05,70380.0,70376.0,0.07104664]
[1771158458926,4e-05,70380.0,70369.0,0.28421321]
[1771158458927,0.02472809,70377.0,70354.0,1e-08]
[1771158459163,0.09579624,70355.0,70354.0,1e-08]
[1771158459374,0.34335318,70375.0,70341.0,0.07108211]
[1771158459375,0.02472809,70354.0,70341.0,0.07108211]
[1771158459583,0.02472809,70354.0,70335.0,0.02419231]
[1771158459584,0.07107626,70347.0,70340.0,0.07128278]
[1771158459830,0.27075889,70355.0,70340.0,0.07128278]
[1771158459831,0.07107483,70349.0,70340.0,0.07128312]
[1771158460079,0.07107652,70347.0,70342.0,0.0712812]
[1771158460306,0.0711439,70347.0,70342.0,0.0712812]
[1771158460526,0.0711439,70347.0,70342.0,0.071429]
[1771158461777,0.0711439,70347.0,70343.0,7e-05]
[1771158462639,6.738e-05,70347.0,70343.0,0.0002178]
[1771158462870,6.738e-05,70347.0,70343.0,0.07129794]
[1771158466284,0.07107842,70345.0,70343.0,0.0002178]
[1771158466468,0.07114404,70347.0,70343.0,0.0002178]
[1771158467451,0.07107809,70346.0,70343.0,0.0002178]
[1771158467659,0.07114404,70347.0,70343.0,0.0002178]
[1771158469186,0.34052,70346.0,70343.0,0.0002178]
[1771158470216,0.34052,70345.0,70343.0,0.0002178]
[1771158470590,0.34052,70345.0,70342.0,0.07120097]
[1771158470786,0.34052,70345.0,70343.0,0.07107946]
[1771158470981,0.34052,70345.0,70344.0,0.07107926]
[1771158471185,0.2694447,70348.0,70345.0,0.07107793]
[1771158473216,0.2694447,70348.0,70344.0,0.07107926]
[1771158473418,0.2694447,70348.0,70344.0,0.07107912]
[1771158478689,0.34056,70347.0,70344.0,0.07107912]
[1771158479048,0.07107463,70349.0,70344.0,0.07107912]
[1771158479242,0.34056,70348.0,70346.0,0.07107681]
[1771158480346,0.34096,70348.0,70346.0,0.07107681]
[1771158480549,0.41203526,70348.0,70344.0,0.0002]
[1771158481180,0.34096,70348.0,70344.0,0.07127922]
[1771158482496,0.0004,70348.0,70344.0,0.07127922]
[1771158482686,0.34056,70347.0,70344.0,0.07127922]
[1771158484613,0.0004,70348.0,70344.0,0.07127922]
[1771158484821,0.34056,70347.0,70346.0,0.07107724]
[1771158485617,0.40090847,70373.0,70355.0,0.07062067]
[1771158485896,0.0710634,70360.0,70355.0,0.07047163]
[1771158486033,0.34056,70359.0,70355.0,0.07047163]
[1771158487025,0.34056,70359.0,70354.0,0.07106752]
[1771158487026,0.07105677,70367.0,70361.0,0.07106157]
[1771158487275,0.07105644,70367.0,70361.0,0.07106157]
[1771158488298,0.34056,70368.0,70350.0,4e-05]
[1771158488505,0.34056,70368.0,70362.0,0.07106037]
[1771158488833,4e-05,70370.0,70366.0,0.07105615]
[1771158489036,4e-05,70370.0,70367.0,0.0710559]
[1771158489370,4e-05,70370.0,70347.0,0.7669871]
[1771158489570,4e-05,70370.0,70368.0,0.07105416]
[1771158489776,4e-05,70370.0,70369.0,0.07105401]
[1771158492257,4e-05,70370.0,70369.0,0.07101042]
[1771158494091,4e-05,70370.0,70369.0,0.07096683]
[1771158497353,4e-05,70370.0,70369.0,0.07058176]
[1771158498937,4e-05,70370.0,70369.0,0.0701348]
[1771158501437,4e-05,70370.0,70361.0,0.42636852]
[1771158501438,0.0002372,70393.0,70382.0,0.07104089]
[1771158501666,0.0004,70383.0,70370.0,4e-05]
[1771158501899,0.0004,70383.0,70371.0,0.07105199]
[1771158502127,0.0004,70383.0,70379.0,0.07104348]
[1771158506281,0.0004,70383.0,70379.0,0.07089449]
[1771158506766,0.0004,70383.0,70379.0,0.07104348]
[1771158508289,0.0004,70383.0,70355.0,0.02273036]
[1771158508290,0.0710482,70375.0,70355.0,0.02273036]
[1771158508493,0.0710482,70375.0,70360.0,0.02257036]
[1771158508494,0.09504804,70375.0,70360.0,0.02257036]
[1771158508668,0.09504804,70375.0,70360.0,0.28583997]
[1771158508872,0.07105183,70372.0,70366.0,0.07105648]
[1771158509277,0.07105254,70371.0,70366.0,0.07105648]
[1771158510971,0.07105505,70368.0,70363.0,0.07105934]
[1771158511184,0.07105505,70368.0,70363.0,0.07118879]
[1771158511370,0.07105458,70369.0,70364.0,0.07105897]
[1771158512130,0.07105385,70370.0,70365.0,0.0710578]
[1771158515483,0.07105385,70370.0,70365.0,0.0712578]
[1771158515875,0.28419562,70375.0,70366.0,0.02253036]
[1771158516080,0.07105047,70373.0,70369.0,0.02253036]
[1771158516823,0.07105075,70374.0,70369.0,0.09358414]
[1771158516997,0.41148951,70375.0,70369.0,0.09358414]
[1771158517207,4e-05,70380.0,70365.0,0.0002]
[1771158517408,4e-05,70380.0,70374.0,0.09357892]
[1771158517637,0.07108296,70380.0,70375.0,0.07104795]
[1771158518073,0.07108347,70380.0,70375.0,0.09357831]
[1771158518351,0.07108347,70380.0,70376.0,0.02253036]
[1771158518352,0.07104507,70378.0,70376.0,0.02253036]
[1771158518580,0.07104396,70379.0,70374.0,0.09357868]
[1771158518802,0.0004,70383.0,70376.0,0.02253036]
[1771158519033,0.07104151,70382.0,70378.0,0.02253036]
[1771158519245,0.0004,70383.0,70378.0,0.09357527]
[1771158519447,0.07144044,70383.0,70378.0,0.02253036]
[1771158519595,0.07104094,70382.0,70378.0,0.02253036]
[1771158519797,0.07104093,70382.0,70378.0,0.02253036]
[1771158521660,0.07144044,70383.0,70378.0,0.0935746]
[1771158522065,0.0004,70383.0,70379.0,0.07100019]
[1771158522222,0.0004,70383.0,70378.0,0.07104424]
[1771158522426,0.0004,70383.0,70368.0,0.02253036]
[1771158522637,0.0004,70383.0,70380.0,0.07104214]
[1771158522844,0.0004,70383.0,70381.0,0.07104098]
[1771158523269,0.0004,70383.0,70382.0,0.07104089]
[1771158524747,0.0004,70386.0,70382.0,0.07104089]
[1771158525776,0.0004,70386.0,70382.0,0.07099727]
[1771158526175,0.0004,70386.0,70383.0,0.07103987]
[1771158526785,0.0004,70386.0,70384.0,0.07103849]
[1771158526964,0.0004,70386.0,70384.0,0.09359308]
[1771158527584,0.0004,70386.0,70385.0,0.07103786]
[1771158527825,0.0004,70386.0,70384.0,0.09359308]
[1771158529171,0.0004,70386.0,70385.0,0.07103786]
[1771158529582,0.0004,70389.0,70388.0,0.07103483]
[1771158530640,0.07102938,70394.0,70389.0,0.07103382]
[1771158530839,0.41146938,70394.0,70388.0,0.07103483]
[1771158530970,0.07102985,70393.0,70388.0,0.07103483]
[1771158531180,0.07102985,70393.0,70388.0,0.07103413]
[1771158531384,0.34044,70394.0,70389.0,0.07103308]
[1771158531702,0.07102936,70394.0,70389.0,0.07103308]
[1771158532682,0.07102954,70395.0,70390.0,0.07103272]
[1771158532892,0.07115896,70395.0,70390.0,0.07103272]
[1771158533101,0.00012942,70395.0,70391.0,0.07103121]
[1771158533502,0.00012942,70395.0,70391.0,0.0935858]
[1771158533904,0.00012942,70395.0,70392.0,0.07103045]
[1771158534116,0.34049,70396.0,70391.0,0.07103121]
[1771158534117,0.04890687,70396.0,70391.0,0.07103121]
[1771158534324,0.02259805,70394.0,70389.0,0.07103288]
[1771158534736,0.02259805,70394.0,70390.0,0.0710323]
[1771158535167,0.02259805,70394.0,70391.0,0.07103179]
[1771158536312,0.07150492,70396.0,70391.0,0.07103179]
[1771158536619,0.04890687,70396.0,70391.0,0.07103179]
[1771158536821,0.02259805,70395.0,70391.0,0.07103179]
[1771158537870,0.04890687,70396.0,70391.0,0.07103179]
[1771158538614,0.07150492,70396.0,70391.0,0.07103179]
[1771158538990,0.02259805,70396.0,70382.0,0.02255459]
[1771158539213,0.02259805,70396.0,70382.0,0.29177921]
[1771158539421,0.3404,70398.0,70397.0,0.07102575]
[1771158539622,0.3404,70398.0,70396.0,0.07078363]
[1771158539623,0.36299805,70398.0,70396.0,0.07078363]
[1771158539951,0.36299805,70398.0,70397.0,0.07102575]
[1771158540633,0.3404,70398.0,70396.0,0.07078363]
[1771158540836,0.0001953,70402.0,70397.0,0.07102499]
[1771158541045,0.3405953,70402.0,70397.0,0.07102499]
[1771158541245,0.3405953,70402.0,70390.0,4e-05]
[1771158541462,0.07102207,70401.0,70396.0,0.07102662]
[1771158541632,0.09362012,70401.0,70396.0,0.07102662]
[1771158542096,0.07102207,70401.0,70395.0,0.07102764]
[1771158542440,0.07102207,70401.0,70396.0,0.07102655]
[1771158542790,0.07102207,70401.0,70395.0,0.07102764]
[1771158543053,0.07102207,70401.0,70396.0,0.07102659]
[1771158543787,0.41161615,70402.0,70396.0,0.07102659]
[1771158544161,0.07102235,70401.0,70396.0,0.07102659]
[1771158544917,0.07102235,70401.0,70395.0,0.07102764]
[1771158545247,0.07102235,70401.0,70396.0,0.07102667]
[1771158546226,0.07102235,70401.0,70393.0,0.28411908]
[1771158546227,0.02259805,70423.0,70391.0,0.34036]
[1771158546425,0.07105291,70410.0,70404.0,0.07101794]
[1771158546586,0.07101384,70409.0,70404.0,0.07101794]
[1771158547028,4e-05,70410.0,70394.0,0.2690952]
[1771158547250,4e-05,70410.0,70407.0,0.07101468]
[1771158547712,4e-05,70410.0,70408.0,0.07101452]
[1771158547858,0.0004,70409.0,70408.0,0.07101452]
[1771158548275,0.0004,70409.0,70408.0,0.07097452]
[1771158550794,0.0001953,70413.0,70400.0,4e-05]
[1771158551000,0.07100701,70416.0,70412.0,0.02255459]
[1771158551207,0.093606,70415.0,70410.0,0.07101243]
[1771158551430,0.09360607,70415.0,70409.0,0.0710119]
[1771158551610,0.09360607,70415.0,70410.0,0.07101225]
[1771158551816,0.07100847,70415.0,70409.0,0.0710119]
[1771158551986,0.07100961,70413.0,70407.0,0.0710149]
[1771158552960,0.07100961,70413.0,70408.0,0.07101462]
[1771158554358,0.07100994,70413.0,70408.0,0.07101462]
[1771158554909,0.07113703,70414.0,70408.0,0.07101462]
[1771158555258,0.07113703,70414.0,70409.0,0.07101313]
[1771158555737,0.0001281,70414.0,70409.0,0.07101313]
[1771158556090,0.0004,70413.0,70412.0,0.07101062]
[1771158556316,0.00043132,70416.0,70413.0,0.07100961]
[1771158556491,0.00062662,70416.0,70413.0,0.09526503]
[1771158557164,0.00062662,70416.0,70413.0,0.07100961]
[1771158557522,0.00043132,70416.0,70413.0,0.07100961]
[1771158560166,0.00043132,70416.0,70414.0,0.07100817]
[1771158561827,0.00043132,70416.0,70415.0,0.07100759]
[1771158562548,0.41132419,70420.0,70408.0,0.30831251]
[1771158562549,0.34032,70420.0,70419.0,0.07100356]
[1771158562757,0.34032,70420.0,70408.0,0.02425542]
[1771158562758,0.0001953,70419.0,70418.0,0.07100413]
[1771158563170,0.0001953,70419.0,70417.0,0.07100527]
[1771158565416,0.0001441,70420.0,70417.0,0.07100527]
[1771158565612,0.0001953,70419.0,70417.0,0.07100527]
[1771158566104,0.00012,70433.0,70401.0,0.90852683]
[1771158566278,0.09514896,70417.0,70410.0,4e-05]
[1771158566523,0.09514896,70417.0,70411.0,0.071011]
[1771158566955,0.07100612,70417.0,70412.0,0.07101053]
[1771158567357,0.07100612,70417.0,70403.0,0.0710196]
[1771158567358,0.2674208,70417.0,70403.0,0.0710196]
[1771158567569,0.07101418,70409.0,70403.0,0.0710196]
[1771158568358,0.09515702,70409.0,70403.0,0.07101908]
[1771158568531,0.07101418,70409.0,70400.0,0.07106171]
[1771158568739,0.07101735,70406.0,70400.0,0.07116624]
[1771158568938,0.08773828,70407.0,70401.0,0.07102098]
[1771158569138,0.01672075,70407.0,70402.0,0.0710206]
[1771158569695,0.01672075,70407.0,70401.0,0.07102098]
[1771158569847,0.08773649,70407.0,70401.0,0.07102098]
[1771158571792,0.07101574,70407.0,70401.0,0.07102098]
[1771158572879,0.07101574,70407.0,70401.0,0.07122098]
[1771158577514,0.07101668,70406.0,70401.0,0.07122098]
[1771158578368,0.07101668,70406.0,70401.0,0.07118098]
[1771158578973,0.07101574,70407.0,70402.0,0.07102064]
[1771158579317,0.07106574,70407.0,70402.0,0.07102064]
[1771158580854,0.0710207,70402.0,70396.0,0.07102648]
[1771158581054,0.0710207,70402.0,70397.0,0.07102563]
[1771158581251,0.0710207,70402.0,70396.0,0.07102648]
[1771158581252,0.07102179,70401.0,70396.0,0.07102648]
[1771158582477,0.2840778,70404.0,70389.0,0.2841322]
[1771158582478,0.01672075,70398.0,70389.0,0.2841322]
[1771158582680,0.01672075,70397.0,70393.0,0.07102932]
[1771158582911,0.01672075,70397.0,70388.0,0.34028]
[1771158583105,0.01672075,70397.0,70393.0,0.07102932]
[1771158583515,0.07102577,70397.0,70391.0,0.07103014]
[1771158583705,0.01672075,70395.0,70391.0,0.07103014]
[1771158584487,0.0877489,70395.0,70387.0,7.5e-05]
[1771158584717,0.01672075,70394.0,70387.0,0.00020442]
[1771158584918,0.01672075,70393.0,70389.0,0.07103326]
[1771158586505,0.07102815,70395.0,70389.0,0.07103326]
[1771158586956,0.07102815,70395.0,70390.0,0.0710327]
[1771158587872,0.0877489,70395.0,70390.0,0.0710327]
[1771158588598,0.07102815,70395.0,70390.0,0.0710327]
[1771158589444,0.07102815,70395.0,70389.0,0.07103326]
[1771158589445,0.07102896,70394.0,70389.0,0.07103326]
[1771158589665,0.07103026,70393.0,70388.0,0.07103323]
[1771158590432,0.07103026,70393.0,70388.0,0.09602129]
[1771158590815,0.07103026,70393.0,70388.0,0.09622129]
[1771158591594,0.07103026,70393.0,70388.0,0.07123323]
[1771158591798,0.07103026,70393.0,70389.0,0.02498806]
[1771158592202,0.07103026,70393.0,70388.0,0.02076594]
[1771158592401,0.34032,70398.0,70392.0,0.07103004]
[1771158592631,0.07102581,70397.0,70392.0,0.07103004]
[1771158593243,0.07102581,70397.0,70392.0,0.07099004]
[1771158595252,0.02102581,70397.0,70392.0,0.07099004]
[1771158597210,0.07102791,70395.0,70391.0,7.5e-05]
[1771158597619,0.07102776,70396.0,70391.0,0.0711066]
[1771158599984,0.07102776,70396.0,70391.0,0.0713066]
[1771158601303,0.0710281,70395.0,70391.0,0.000275]
[1771158601714,0.07102913,70394.0,70391.0,0.000275]
[1771158602402,0.0710281,70395.0,70391.0,0.000275]
[1771158602608,0.07102935,70394.0,70391.0,0.000275]
[1771158602820,0.07102982,70393.0,70391.0,0.0002]
[1771158605513,0.07103079,70392.0,70391.0,0.0002]
[1771158606165,0.0710274,70396.0,70391.0,0.07123148]
[1771158606597,0.0710274,70396.0,70391.0,0.09621954]
[1771158608052,0.07102787,70395.0,70391.0,0.09621954]
[1771158608263,0.07102787,70395.0,70391.0,0.09617954]
[1771158608486,4e-05,70400.0,70394.0,0.07102826]
[1771158608702,4e-05,70400.0,70392.0,0.26650703]
[1771158608939,0.07102602,70397.0,70393.0,0.02498806]
[1771158609151,0.07102493,70398.0,70393.0,0.07102968]
[1771158609568,0.07102587,70397.0,70392.0,0.09601843]
[1771158610322,0.07102763,70396.0,70392.0,0.02498806]
[1771158610523,0.07102763,70396.0,70392.0,0.09601878]
[1771158611326,0.07102763,70396.0,70392.0,0.02498806]
[1771158611907,0.01878299,70399.0,70391.0,0.00016]
[1771158612050,0.07102743,70396.0,70391.0,0.00016]
[1771158615201,0.07102743,70396.0,70391.0,0.09498251]
[1771158615812,0.07102743,70396.0,70391.0,0.07119177]
[1771158616930,0.07103,70393.0,70391.0,0.00016]
[1771158621422,0.07102885,70394.0,70391.0,0.00016]
[1771158621614,0.07142712,70396.0,70391.0,0.07119168]
[1771158621905,0.0004,70396.0,70391.0,0.09498242]
[1771158622409,0.0004,70396.0,70392.0,0.07103051]
[1771158623451,0.0004,70396.0,70391.0,0.07119168]
[1771158623452,0.07103075,70393.0,70388.0,0.0002]
[1771158623663,0.07103075,70393.0,70388.0,0.02399074]
[1771158623840,0.07103075,70393.0,70388.0,0.09502533]
[1771158625023,0.07103075,70393.0,70388.0,0.43534533]
[1771158626650,0.07102785,70395.0,70391.0,0.0710317]
[1771158626986,0.0004,70393.0,70391.0,0.0710317]
[1771158627816,0.07102785,70395.0,70391.0,0.0710317]
[1771158627978,0.07142729,70396.0,70391.0,0.0710317]
[1771158627979,0.07102751,70396.0,70392.0,0.02379074]
[1771158628180,0.0710269,70396.0,70392.0,0.02379074]
[1771158628589,0.0004,70401.0,70397.0,0.07102548]
[1771158629376,0.0004,70401.0,70398.0,0.07102437]
[1771158632151,0.0004,70401.0,70399.0,0.07102373]
[1771158632313,0.0004,70401.0,70398.0,0.07102437]
[1771158632969,0.07101988,70403.0,70398.0,0.07102437]
[1771158633172,0.01878299,70402.0,70398.0,0.07102437]
[1771158633341,0.07101988,70403.0,70398.0,0.07102437]
[1771158633759,4e-05,70410.0,70401.0,0.07102169]
[1771158633977,0.07101517,70408.0,70403.0,0.07101931]
[1771158635285,0.0004,70408.0,70404.0,0.07101812]
[1771158635922,0.07141485,70408.0,70403.0,0.07101931]
[1771158636610,0.07141485,70408.0,70399.0,0.02379074]
[1771158636611,0.0004,70408.0,70404.0,0.07101854]
[1771158636787,4e-05,70410.0,70407.0,0.07101534]
[1771158637229,9.53e-05,70412.0,70391.0,0.42638717]
[1771158637230,9.53e-05,70412.0,70409.0,0.02379074]
[1771158637430,0.07100607,70417.0,70411.0,0.07101163]
[1771158637637,0.07100659,70416.0,70411.0,0.07101163]
[1771158638455,0.00043105,70416.0,70412.0,0.07100983]
[1771158638663,0.07143768,70416.0,70411.0,0.07101163]
[1771158639257,0.07100464,70418.0,70413.0,0.07100945]
[1771158639487,0.00012925,70418.0,70414.0,0.07100821]
[1771158639813,0.34032,70422.0,70414.0,0.07100821]
[1771158639814,0.07099909,70424.0,70419.0,0.0710034]
[1771158640007,0.0709996,70423.0,70420.0,0.02379074]
[1771158640447,0.07099772,70425.0,70420.0,0.02379074]
[1771158640658,0.07099653,70426.0,70421.0,0.02379074]
[1771158640955,0.0001517,70429.0,70421.0,0.02379074]
[1771158641405,0.0709981,70425.0,70421.0,0.02379074]
[1771158643558,0.07099657,70426.0,70422.0,0.02409301]
[1771158643758,0.0004,70424.0,70422.0,0.02409301]
[1771158645052,0.0004,70424.0,70414.0,0.56809677]
[1771158645053,0.1700456,70465.0,70423.0,0.34028]
[1771158645264,0.07112937,70445.0,70429.0,0.27002968]
[1771158645488,0.07112937,70445.0,70423.0,0.43136925]
[1771158645489,0.01878299,70442.0,70432.0,0.28395921]
[1771158645702,0.01878299,70442.0,70423.0,0.43136925]
[1771158645703,0.28082285,70441.0,70423.0,0.00012925]
[1771158645928,0.07099416,70429.0,70423.0,0.00012925]
[1771158646535,0.07099416,70429.0,70420.0,4e-05]
[1771158646536,0.07099416,70429.0,70420.0,0.07104195]
[1771158646746,0.07112343,70429.0,70422.0,0.0710004]
[1771158646938,0.0711228,70429.0,70422.0,0.0710004]
[1771158647138,0.00012927,70429.0,70423.0,0.07099883]
[1771158647377,0.28394848,70436.0,70423.0,0.07099883]
[1771158647378,0.0001151,70456.0,70423.0,0.02409301]
[1771158647584,0.07097287,70450.0,70441.0,0.09099877]
[1771158647850,0.07097581,70447.0,70439.0,0.07098293]
[1771158648070,0.07097832,70445.0,70436.0,0.07098576]
[1771158648234,0.070979,70444.0,70436.0,0.07098576]
[1771158648844,0.01878299,70443.0,70436.0,0.07098576]
[1771158649246,0.08976251,70443.0,70436.0,0.07098576]
[1771158649493,0.08976251,70443.0,70435.0,0.07098576]
[1771158649494,0.07097952,70443.0,70435.0,0.07098576]
[1771158649698,0.01878299,70442.0,70436.0,0.07098628]
[1771158649904,0.070979,70444.0,70436.0,0.07098628]
[1771158650979,0.070979,70444.0,70437.0,0.07098489]
[1771158651620,0.0709779,70445.0,70437.0,0.07098489]
[1771158652259,0.00012929,70447.0,70440.0,0.07098142]
[1771158652450,0.00012929,70447.0,70434.0,0.02409301]
[1771158652451,0.0004,70444.0,70434.0,0.02409301]
[1771158652656,0.0004,70444.0,70437.0,0.07098491]
[1771158652861,0.01878299,70443.0,70437.0,0.07098491]
[1771158653191,0.01878299,70443.0,70440.0,4e-05]
[1771158653393,0.08976245,70443.0,70440.0,4e-05]
[1771158653599,0.01878299,70443.0,70440.0,4e-05]
[1771158653791,0.0004,70444.0,70440.0,4e-05]
[1771158654429,0.0713786,70444.0,70440.0,4e-05]
[1771158656326,0.0713786,70444.0,70437.0,0.07087629]
[1771158656731,0.0709794,70443.0,70427.0,0.27002968]
[1771158656940,0.0709855,70437.0,70430.0,0.0709919]
[1771158657148,0.07098278,70440.0,70433.0,0.07098937]
[1771158657355,0.07098379,70439.0,70432.0,0.07098996]
[1771158657730,0.0709845,70438.0,70432.0,0.07098996]
[1771158657866,0.07097992,70443.0,70437.0,0.07098532]
[1771158658281,0.07098096,70442.0,70436.0,0.07098589]
[1771158659515,0.07098176,70441.0,70435.0,0.07098659]
[1771158660128,0.0709825,70440.0,70435.0,0.07098659]
[1771158660299,0.01878299,70439.0,70434.0,0.07098823]
[1771158660505,0.07098975,70433.0,70426.0,0.07099559]
[1771158660727,0.07098975,70433.0,70409.0,0.56810898]
[1771158660728,0.01878299,70434.0,70417.0,0.02409301]
[1771158660917,0.0709934,70430.0,70424.0,0.07099849]
[1771158661277,0.0004,70443.0,70422.0,0.07099971]
[1771158661278,0.07099541,70428.0,70422.0,0.07099971]
[1771158661480,0.07099541,70428.0,70417.0,0.02409301]
[1771158661481,0.07099891,70424.0,70418.0,0.07100423]
[1771158661685,0.07099891,70424.0,70417.0,0.02409301]
[1771158661686,0.07099247,70430.0,70414.0,0.28403385]
[1771158661891,0.07100098,70422.0,70416.0,0.07100614]
[1771158662294,0.07100154,70421.0,70416.0,0.07100614]
[1771158662414,0.07100098,70422.0,70417.0,0.07100533]
[1771158662619,0.07100154,70421.0,70420.0,0.00042117]
[1771158662819,0.07100154,70421.0,70420.0,0.00038117]
[1771158663251,0.07100586,70417.0,70412.0,0.07101048]
[1771158663446,0.07100586,70417.0,70410.0,0.0001835]
[1771158663447,0.07100658,70416.0,70410.0,0.0001835]
[1771158663662,0.07101163,70411.0,70410.0,0.0001835]
[1771158664085,0.07101374,70409.0,70404.0,0.07121845]
[1771158664514,0.0710131,70410.0,70404.0,0.07121845]
[1771158664713,0.07101163,70411.0,70405.0,0.07101757]
[1771158664945,0.07101081,70412.0,70405.0,0.07101714]
[1771158665286,0.0710132,70410.0,70403.0,0.04672054]
[1771158665517,0.07101124,70412.0,70406.0,0.07101622]
[1771158665777,0.07101315,70410.0,70404.0,0.07101831]
[1771158666253,0.071011,70412.0,70402.0,0.0710207]
[1771158666461,0.071011,70412.0,70405.0,0.07101716]
[1771158666692,0.01878299,70415.0,70401.0,0.02409301]
[1771158666693,0.07101016,70413.0,70407.0,0.0710152]
[1771158668393,4e-05,70410.0,70405.0,0.0710171]
[1771158668600,4e-05,70410.0,70406.0,0.02409301]
[1771158668770,4e-05,70410.0,70406.0,0.09510905]
[1771158669527,4e-05,70410.0,70406.0,0.09496034]
[1771158669735,4e-05,70410.0,70406.0,0.09496025]
[1771158669951,4e-05,70410.0,70406.0,0.0239443]
[1771158670171,0.07105359,70410.0,70406.0,0.0239443]
[1771158670384,4e-05,70410.0,70406.0,0.0239443]
[1771158670622,0.07101367,70409.0,70402.0,0.07101995]
[1771158670821,0.07101367,70409.0,70404.0,0.07101858]
[1771158672625,4e-05,70410.0,70406.0,0.07101654]
[1771158672834,4e-05,70410.0,70405.0,0.07101712]
[1771158673033,4e-05,70410.0,70406.0,0.07101608]
[1771158675017,4e-05,70410.0,70406.0,0.07101636]
[1771158677549,0.07101474,70408.0,70403.0,0.07101916]
[1771158677786,0.07101508,70408.0,70403.0,0.07101916]
[1771158678014,0.07101507,70408.0,70403.0,0.07101916]
[1771158678280,0.07101507,70408.0,70401.0,0.0002]
[1771158678281,0.07101507,70408.0,70402.0,0.07101888]
[1771158678513,0.05302451,70406.0,70401.0,0.07122142]
[1771158678792,0.07102171,70401.0,70400.0,0.0002585]
[1771158679202,0.07102526,70398.0,70391.0,0.0002]
[1771158679339,0.07102575,70397.0,70392.0,0.07103048]
[1771158679752,0.07102575,70397.0,70393.0,0.0002]
[1771158679982,0.07102575,70397.0,70391.0,0.0002]
[1771158680197,0.0241392,70397.0,70391.0,0.0002]
[1771158680406,0.07102988,70393.0,70391.0,0.0002]
[1771158680633,0.07102946,70394.0,70391.0,0.0002]
[1771158680889,0.07102882,70394.0,70391.0,0.0002]
[1771158681099,0.34024,70398.0,70391.0,0.0002]
[1771158681100,0.07102769,70396.0,70391.0,0.0002]
[1771158681276,0.07102961,70394.0,70391.0,0.0002]
[1771158681473,0.34024,70398.0,70391.0,0.0002]
[1771158681675,0.0710299,70393.0,70391.0,0.00063105]
[1771158681853,0.41126575,70398.0,70391.0,0.00063105]
[1771158682225,0.34024,70398.0,70391.0,0.00063105]
[1771158682360,0.07102991,70393.0,70391.0,0.00063105]
[1771158682572,0.07102894,70394.0,70391.0,0.00063105]
[1771158682989,0.34024,70398.0,70391.0,0.00063105]
[1771158683573,0.07102713,70396.0,70391.0,0.07166281]
[1771158684297,0.07102713,70396.0,70391.0,0.00063105]
[1771158684507,0.07102943,70394.0,70391.0,0.00063105]
[1771158684901,0.07102981,70393.0,70391.0,0.00063105]
[1771158686391,0.07102819,70395.0,70391.0,0.00063105]
[1771158686624,0.07102983,70393.0,70391.0,0.00063105]
[1771158686811,0.07102819,70395.0,70391.0,0.00063105]
[1771158687146,0.0710297,70394.0,70391.0,0.00063105]
[1771158687683,0.34024,70398.0,70391.0,0.00063105]